fUSD/lending_fUSD_20251031
["ID","MTS","AMOUNT","RATE_DAILY","PERIOD"]
[392756638,1761921040508,-21806.93821173,0.00015,2]
[392756642,1761921040530,-9506.78639084,0.00015,2]
[392756897,1761921042976,-11194.45773125,0.00015,2]
[392756916,1761921043160,-1539.92047636,0.00015,2]
[392757068,1761921045878,-722.20017285,0.00015,2]
[392757069,1761921045963,-364795.39338673,0.00015,2]
[392757070,1761921046076,-2028.9238136,0.00015,2]
[392757071,1761921046087,-2420.11577205,0.00015,2]
[392757075,1761921095569,478.0,0.00018,30]
[392757076,1761921120203,907.46,7.509e-05,2]
[392757077,1761921120418,907.46,7.904e-05,2]
[392757078,1761921120661,907.46,8.299e-05,2]
[392757079,1761921120876,907.46,8.695e-05,2]
[392757080,1761921121143,907.46,9.09e-05,2]
[392757081,1761921121378,372.22755585,9.485e-05,2]
[392757082,1761921121402,535.23244415,9.485e-05,2]
[392757083,1761921121587,907.46,9.88e-05,2]
[392757084,1761921121803,907.46,0.00010275,2]
[392757085,1761921122030,907.46,0.00010671,2]
[392757086,1761921122267,907.46,0.00011066,2]
[392757087,1761921122486,907.46,0.00011461,2]
[392757088,1761921122730,907.46,0.00011856,2]
[392757089,1761921122969,907.46,0.00012251,2]
[392757090,1761921123381,907.46,0.00012647,2]
[392757091,1761921123696,907.46,0.00013042,2]
[392757092,1761921123900,907.46,0.00013437,2]
[392757093,1761921124123,907.46,0.00013832,2]
[392757094,1761921135751,929.07289492,0.00013,2]
[392757095,1761921136610,500.0,0.00013,2]
[392757096,1761921136902,513.47368086,0.00013,2]
[392757097,1761921136996,714.55331608,0.00013,2]
[392757098,1761921140821,500.0,0.00013,2]
[392757099,1761921144421,500.0,0.00013,2]
[392757100,1761921152932,515.10927205,0.00013,2]
[392757106,1761921299748,3000.0,0.00014,2]
[392757107,1761921376813,-548.9161262,0.00014056,2]
[392757108,1761921378671,-324.757,0.00014056,2]
[392757109,1761921379645,-203.95013313,0.00014056,2]
[392757110,1761921382232,-539.07,0.00014056,2]
[392757111,1761921418919,3000.0,0.00014,2]
[392757112,1761921427727,736.0,0.00017012,120]
[392757114,1761921456691,92709.63745141,0.000165,3]
[392757115,1761921491439,3000.0,0.00014,2]
[392757117,1761921530020,100000.0,0.000155,3]
[392757118,1761921530047,100000.0,0.000155,3]
[392757119,1761921530071,100000.0,0.000155,3]
[392757120,1761921530109,100000.0,0.000155,3]
[392757121,1761921541399,4000.0,0.00014,2]
[392757122,1761921548161,100000.0,0.000145,3]
[392757123,1761921548189,100000.0,0.000145,3]
[392757125,1761921579189,-250.0,0.00014025,2]
[392757126,1761921581566,5000.0,0.00014,2]
[392757127,1761921609389,1460664.20839194,0.00014,2]
[392757128,1761921629017,1120.421711,0.0001393,2]
[392757129,1761921629785,54142.43954981,0.000139,2]
[392757130,1761921629810,2000000.0,0.000139,2]
[392757131,1761921629832,1611203.71460684,0.000139,2]
[392757132,1761921641455,170.57713047,0.00013925,2]
[392757134,1761921676202,-500.0,0.00013999,2]
[392757135,1761921676236,-320.14286558,0.00013999,2]
[392757136,1761921676263,-247.67165178,0.00013999,2]
[392757137,1761921676287,-23.61464775,0.00013999,2]
[392757138,1761921679485,-159.43005431,0.00013999,2]
[392757139,1761921679508,-6.66994569,0.00013999,2]
[392757140,1761921681429,-166.1,0.00013999,2]
[392757141,1761921717942,1930.9287507,0.00013899,2]
[392757154,1761921866182,7089.01,0.00013934,2]
[392757176,1761922111809,2837.54,0.00013966,2]
[392757177,1761922129488,250.0,0.00013981,2]
[392757179,1761922231383,-300.0,0.00013998,2]
[392757180,1761922231409,-1200.0,0.00013998,2]
[392757181,1761922231434,-300.0,0.00013998,2]
[392757182,1761922231459,-1200.0,0.00013999,2]
[392757183,1761922231487,-150.0,0.00013999,2]
[392757184,1761922231511,-500.0,0.00013999,2]
[392757185,1761922231536,-440.4385336,0.00013999,2]
[392757186,1761922231560,-4000.0,0.00014,2]
[392757187,1761922231585,-4000.0,0.00014,2]
[392757188,1761922231609,-2909.5614664,0.00014,2]
[392757197,1761922231843,-1517.4385336,0.00014,2]
[392757198,1761922231852,-251.09130745,0.00014,2]
[392757199,1761922231862,-1602.42,0.00014025,2]
[392757200,1761922231871,-2592.74,0.00014118,2]
[392757201,1761922231881,-907.46,0.00014227,2]
[392757202,1761922231891,-500.0,0.00014473,2]
[392757203,1761922231902,-500.0,0.00014473,2]
[392757204,1761922231911,-907.46,0.00014623,2]
[392757205,1761922231920,-697.83,0.000147,2]
[392757206,1761922231929,-197.0,0.00014727,2]
[392757207,1761922231939,-168.0,0.00014818,2]
[392757208,1761922231949,-284.0,0.0001485,2]
[392757209,1761922231959,-819.83176,0.0001485,2]
[392757210,1761922231967,-819.83176,0.0001486,2]
[392757211,1761922231984,-168.0,0.00014878,2]
[392757212,1761922231997,-168.0,0.00014881,2]
[392757213,1761922232006,-574.12855637,0.00014891,2]
[392757214,1761922232016,-5401.9263,0.000149,2]
[392757215,1761922232026,-5162.09363357,0.000149,2]
[392757216,1761922232036,-5000.0,0.000149,2]
[392757217,1761922232045,-574.02875098,0.000149,2]
[392757218,1761922232055,-423.72872555,0.000149,2]
[392757219,1761922232065,-151.72623628,0.000149,2]
[392757220,1761922232076,-1000.0,0.00014928,2]
[392757221,1761922232087,-151.0,0.00014965,2]
[392757222,1761922232098,-151.0,0.00014967,2]
[392757223,1761922232108,-151.0,0.00014968,2]
[392757224,1761922232118,-3079.84226353,0.00014969,2]
[392757225,1761922232128,-151.0,0.00014969,2]
[392757226,1761922232138,-151.0,0.0001497,2]
[392757227,1761922232147,-500.0,0.00014973,2]
[392757228,1761922232157,-500.0,0.00014973,2]
[392757229,1761922232167,-524.55788713,0.00014973,2]
[392757230,1761922232177,-451.00975863,0.00014973,2]
[392757231,1761922232187,-500.0,0.00014973,2]
[392757249,1761922232466,-500.0,0.00014973,2]
[392757253,1761922232484,-500.0,0.00014973,2]
[392757255,1761922232494,-500.0,0.00014973,2]
[392757257,1761922232505,-559.57615876,0.00014973,2]
[392757259,1761922232515,-500.0,0.00014973,2]
[392757260,1761922232525,-500.0,0.00014973,2]
[392757262,1761922232536,-500.0,0.00014973,2]
[392757264,1761922232545,-505.47351927,0.00014973,2]
[392757265,1761922232554,-481.75445949,0.00014973,2]
[392757267,1761922232563,-500.0,0.00014973,2]
[392757269,1761922232572,-500.0,0.00014973,2]
[392757270,1761922232582,-500.0,0.00014973,2]
[392757272,1761922232591,-500.0,0.00014973,2]
[392757274,1761922232601,-500.0,0.00014973,2]
[392757276,1761922232610,-177.76407963,0.00014973,2]
[392757277,1761922232619,-221.32331399,0.00014973,2]
[392757279,1761922232628,-264.96595259,0.00014973,2]
[392757281,1761922232637,-629.0,0.00014973,2]
[392757283,1761922232646,-1128.0,0.00014973,2]
[392757284,1761922232655,-150.0,0.00014973,2]
[392757286,1761922232664,-500.0,0.00014973,2]
[392757288,1761922232673,-500.0,0.00014973,2]
[392757290,1761922232682,-257.02911303,0.00014973,2]
[392757292,1761922232691,-500.0,0.00014973,2]
[392757293,1761922232700,-500.0,0.00014973,2]
[392757295,1761922232709,-500.0,0.00014973,2]
[392757297,1761922232718,-500.0,0.00014973,2]
[392757299,1761922232727,-500.0,0.00014973,2]
[392757300,1761922232736,-150.0,0.00014973,2]
[392757302,1761922232745,-150.0,0.00014973,2]
[392757304,1761922232754,-500.0,0.00014973,2]
[392757306,1761922232763,-150.0,0.00014973,2]
[392757307,1761922232774,-150.0,0.00014973,2]
[392757309,1761922232784,-150.0,0.00014973,2]
[392757311,1761922232793,-197.0,0.00014975,2]
[392757313,1761922232803,-2881.326,0.0001499,2]
[392757314,1761922232812,-291.83007304,0.00014999,2]
[392757316,1761922232821,-232.32231663,0.00014999,2]
[392757318,1761922232831,-500.0,0.00014999,2]
[392757320,1761922232840,-224.10000591,0.00014999,2]
[392757321,1761922232850,-173.37015625,0.00014999,2]
[392757323,1761922232859,-361.73031852,0.00014999,2]
[392757325,1761922232869,-209.90590972,0.00014999,2]
[392757327,1761922232877,-153.21122296,0.00014999,2]
[392757329,1761922232886,-216.1047315,0.00014999,2]
[392757330,1761922232896,-500.0,0.00014999,2]
[392757332,1761922232905,-500.0,0.00014999,2]
[392757334,1761922232914,-500.0,0.00014999,2]
[392757336,1761922232923,-500.0,0.00014999,2]
[392757338,1761922232932,-500.0,0.00014999,2]
[392757340,1761922232942,-150.0,0.00014999,2]
[392757341,1761922232952,-500.0,0.00014999,2]
[392757343,1761922232962,-500.0,0.00014999,2]
[392757345,1761922232971,-500.0,0.00014999,2]
[392757347,1761922232981,-1000.0,0.00014999,2]
[392757349,1761922232991,-1049.5377,0.00014999,2]
[392757351,1761922232999,-1057.7028,0.00014999,2]
[392757352,1761922233009,-1100.0,0.00014999,2]
[392757354,1761922233018,-500.0,0.00014999,2]
[392757356,1761922233028,-500.0,0.00014999,2]
[392757358,1761922233040,-500.0,0.00014999,2]
[392757360,1761922233049,-500.0,0.00014999,2]
[392757361,1761922233059,-500.0,0.00014999,2]
[392757363,1761922233068,-500.0,0.00014999,2]
[392757365,1761922233078,-500.0,0.00014999,2]
[392757367,1761922233087,-172.04,0.00014999,2]
[392757368,1761922233096,-500.0,0.00014999,2]
[392757370,1761922233106,-500.0,0.00014999,2]
[392757372,1761922233115,-643.60988165,0.00014999,2]
[392757374,1761922233125,-500.0,0.00014999,2]
[392757376,1761922233134,-500.0,0.00014999,2]
[392757378,1761922233143,-500.0,0.00014999,2]
[392757379,1761922233153,-500.0,0.00014999,2]
[392757381,1761922233162,-500.0,0.00014999,2]
[392757383,1761922233172,-500.0,0.00014999,2]
[392757385,1761922233181,-500.0,0.00014999,2]
[392757387,1761922233191,-500.0,0.00014999,2]
[392757388,1761922233200,-500.0,0.00014999,2]
[392757390,1761922233210,-414.44,0.00014999,2]
[392757392,1761922233220,-2533.0,0.00015,2]
[392757394,1761922233229,-135569.8893,0.00015,2]
[392757438,1761922233747,-21850.61904167,0.00015,2]
[392757440,1761922233759,-11272.53640001,0.00015,2]
[392757444,1761922233788,-24442.10204675,0.00015,2]
[392757446,1761922233799,-51913.25135961,0.00015,2]
[392757839,1761922237804,-274.09328731,0.00014973,2]
[392757841,1761922237814,-500.0,0.00014973,2]
[392757843,1761922237824,-2282.28163502,0.00015,2]
[392757845,1761922237835,-2933.26881618,0.00015,2]
[392757871,1761922238076,-21724.72346957,0.00015,2]
[392757874,1761922238088,-5401.9262761,0.00015,2]
[392757876,1761922238099,-1253324.34428934,0.00015,2]
[392757878,1761922238109,-250.0,0.00015,2]
[392757880,1761922238118,-205.072,0.00015,2]
[392757882,1761922238128,-214.469,0.00015,2]
[392757884,1761922238138,-151.705,0.00015,2]
[392757886,1761922238147,-250.0,0.00015,2]
[392757888,1761922238156,-188.728,0.00015,2]
[392757890,1761922238165,-1000.0,0.00015,2]
[392757892,1761922238175,-1000.0,0.00015,2]
[392757894,1761922238185,-1000.0,0.00015,2]
[392757896,1761922238194,-1000.0,0.00015,2]
[392757898,1761922238203,-1000.0,0.00015,2]
[392757900,1761922238213,-1000.0,0.00015,2]
[392757902,1761922238222,-1000.0,0.00015,2]
[392757904,1761922238232,-1000.0,0.00015,2]
[392757905,1761922238242,-1000.0,0.00015,2]
[392757908,1761922238252,-1000.0,0.00015,2]
[392757910,1761922238262,-1000.0,0.00015,2]
[392757911,1761922238271,-1000.0,0.00015,2]
[392757914,1761922238281,-1000.0,0.00015,2]
[392757916,1761922238293,-1000.0,0.00015,2]
[392757917,1761922238302,-1000.0,0.00015,2]
[392757920,1761922238312,-1000.0,0.00015,2]
[392757949,1761922238604,-540.04739227,0.00015,2]
[392757951,1761922238615,-5393051.70819476,0.00015,2]
[392758088,1761922239931,-376.50999985,0.00015,2]
[392758130,1761922240309,-131.59538537,0.00015,2]
[392758132,1761922240321,-51439.46156703,0.00015,2]
[392758135,1761922240337,-2475.0,0.00015,2]
[392758139,1761922240367,-5091.78762921,0.00015,2]
[392758414,1761922242987,-374.30057989,0.00015,2]
[392758417,1761922242999,-30191.01923876,0.00015,2]
[392758419,1761922243010,-611303.78034969,0.00015,2]
[392758422,1761922243029,-236751.85838498,0.00015,2]
[392758426,1761922243055,-2988.85717266,0.00015,2]
[392758430,1761922243089,-917.7894011,0.00015,2]
[392758720,1761922245888,-151.0,0.00014973,2]
[392758722,1761922245897,-11764.60823172,0.00015,2]
[392758733,1761922246001,-362.28999998,0.00015,2]
[392759682,1761922778410,533.07,0.00013699,2]
[392759683,1761922861333,-500.0,0.00013999,2]
[392759684,1761922861356,-1200.0,0.00013999,2]
[392759685,1761922861378,-3448.91695114,0.00014,2]
[392759686,1761922862973,-152.69004,0.00014,2]
[392759687,1761922863202,-152.69004,0.00014,2]
[392759688,1761922876279,-178.96996,0.00014,2]
[392759689,1761922880687,-179.948,0.00014,2]
[392759690,1761922885519,-500.0,0.00014,2]
[392759691,1761922887450,-225.19,0.00014,2]
[392759692,1761922899057,-588.88136813,0.00014,2]
[392759693,1761922901860,-373.44413251,0.00014,2]
[392759694,1761922906916,-405.07512919,0.00014,2]
[392759695,1761922910101,-399.08,0.00014,2]
[392759696,1761922911558,-354.77009464,0.00014,2]
[392759697,1761922912720,-399.08,0.00014,2]
[392759698,1761922913006,-294.03232781,0.00014,2]
[392759699,1761922914300,-354.77009464,0.00014,2]
[392759700,1761922917439,-294.03232781,0.00014,2]
[392759701,1761922944837,-398.04991434,0.00014,2]
[392759702,1761922949984,-500.0,0.00014,2]
[392759703,1761922952671,-366.18163817,0.00014,2]
[392759704,1761922958464,-250.0,0.00014,2]
[392759705,1761922966879,-182.09798162,0.00014,2]
[392759706,1761922966910,-72.28648525,0.0001401,2]
[392759707,1761922988479,-238.1571995,0.00013999,2]
[392759708,1761922992390,-256.16478905,0.00013999,2]
[392759709,1761922999531,-500.00000016,0.00013999,2]
[392759710,1761923001749,-275.89539237,0.00013999,2]
[392759711,1761923011244,-217.60937087,0.00013999,2]
[392759712,1761923014585,-200.49963692,0.00013999,2]
[392759713,1761923016367,-357.00677028,0.00013999,2]
[392759714,1761923023408,-261.55530568,0.00013999,2]
[392759715,1761923025896,-241.32391754,0.00013999,2]
[392759718,1761923030516,-295.80839727,0.00013999,2]
[392759722,1761923033532,-155.01583477,0.00013999,2]
[392759723,1761923033865,-155.01583477,0.00013999,2]
[392759725,1761923038462,-443.89314821,0.00013999,2]
[392759726,1761923040269,-291.76618943,0.00013999,2]
[392759727,1761923041507,-180.8195341,0.00013999,2]
[392759733,1761923093794,-230.23014113,0.00013998,2]
[392759734,1761923096688,-69.76985887,0.00013998,2]
[392759735,1761923096711,-160.46028226,0.00013998,2]
[392759736,1761923096840,-271.79725284,0.00013998,2]
[392759737,1761923096871,-66.19887202,0.00013998,2]
[392759738,1761923101696,776.44192101,0.0001391,2]
[392759739,1761923105915,-229.11810266,0.00013997,2]
[392759740,1761923106639,150.0,0.00013488,2]
[392759741,1761923107038,150.0,0.00013488,2]
[392759742,1761923107087,150.0,0.00013488,2]
[392759743,1761923112242,150.0,0.00013488,2]
[392759744,1761923112302,150.0,0.00013488,2]
[392759745,1761923114263,150.0,0.00013488,2]
[392759746,1761923114397,150.0,0.00013488,2]
[392759747,1761923120851,150.0,0.00013488,2]
[392759748,1761923127593,150.0,0.00013488,2]
[392759749,1761923127639,150.0,0.00013787,2]
[392759750,1761923127998,150.0,0.00013488,2]
[392759751,1761923128257,150.0,0.00013488,2]
[392759752,1761923140339,166.66,0.00013699,2]
[392759753,1761923173139,234.78322556,0.00013898,2]
[392759756,1761923236632,1257.53,0.00013733,2]
[392759757,1761923272295,1000.0,0.00013899,2]
[392759758,1761923311395,30091.49276126,0.00013,2]
[392759759,1761923315025,2500.0,0.00013899,2]
[392759760,1761923377064,2997.1893,0.00013899,2]
[392759762,1761923418515,5058.54,0.00013989,2]
[392759763,1761923420154,417.7275,0.00013899,2]
[392759768,1761923432149,-300.0,0.00013997,2]
[392759769,1761923432159,-300.0,0.00013997,2]
[392759770,1761923432169,-286.63858315,0.00013997,2]
[392759771,1761923432180,-13.36141685,0.00013997,2]
[392759772,1761923432190,-1200.0,0.00013997,2]
[392759773,1761923432200,-433.80112798,0.00013998,2]
[392759774,1761923432209,-500.0,0.00013998,2]
[392759775,1761923432220,-500.0,0.00013998,2]
[392759776,1761923432230,-500.0,0.00013998,2]
[392759777,1761923432240,-370.37793149,0.00013998,2]
[392759778,1761923432250,-150.0,0.00013998,2]
[392759779,1761923432260,-245929.46867908,0.00013999,2]
[392759780,1761923432269,-369.0795372,0.00013999,2]
[392759781,1761923432279,-151.0,0.00013999,2]
[392759782,1761923432289,-87.28351475,0.0001401,2]
[392759783,1761923432299,-776.44192093,0.0001402,2]
[392759784,1761923432309,-274.39,0.00014071,2]
[392759785,1761923432318,-187.56289428,0.00014071,2]
[392759786,1761923432328,-11196.86,0.00014082,2]
[392759787,1761923432337,-187.56289428,0.00014082,2]
[392759788,1761923432346,-150.0,0.00014087,2]
[392759789,1761923432356,-776.44192093,0.0001413,2]
[392759790,1761923432365,-150.0,0.00014237,2]
[392759791,1761923432376,-150.0,0.00014237,2]
[392759792,1761923432386,-776.44192093,0.0001424,2]
[392759793,1761923432396,-776.44192093,0.0001435,2]
[392759794,1761923432406,-150.0,0.00014387,2]
[392759795,1761923432416,-776.44192093,0.0001446,2]
[392759796,1761923432426,-166.68,0.00014493,2]
[392759797,1761923432435,-168.0,0.00014513,2]
[392759798,1761923432445,-500.0,0.00014521,2]
[392759800,1761923432455,-776.44192093,0.0001457,2]
[392759802,1761923432465,-281.55,0.00014578,2]
[392759804,1761923432475,-776.44192093,0.0001468,2]
[392759806,1761923432485,-150.0,0.00014687,2]
[392759808,1761923432494,-219.05,0.00014703,2]
[392759810,1761923432505,-776.44192093,0.0001479,2]
[392759812,1761923432515,-500.0,0.00014799,2]
[392759814,1761923432524,-200.0,0.0001488,2]
[392759816,1761923432534,-1211.2,0.00014891,2]
[392759818,1761923432543,-151.0,0.00014891,2]
[392759819,1761923432553,-151.0,0.00014891,2]
[392759821,1761923432563,-151.0,0.00014891,2]
[392759823,1761923432573,-151.0,0.00014891,2]
[392759825,1761923432582,-151.0,0.00014891,2]
[392759827,1761923432591,-151.0,0.00014891,2]
[392759829,1761923432600,-151.0,0.00014891,2]
[392759831,1761923432610,-151.0,0.00014891,2]
[392759833,1761923432620,-151.0,0.00014891,2]
[392759835,1761923432629,-151.0,0.00014891,2]
[392759837,1761923432639,-151.0,0.00014891,2]
[392759839,1761923432649,-151.0,0.00014891,2]
[392759841,1761923432659,-151.0,0.00014891,2]
[392759843,1761923432668,-151.0,0.00014891,2]
[392759845,1761923432678,-151.0,0.00014891,2]
[392759847,1761923432687,-151.0,0.00014891,2]
[392759851,1761923432697,-151.0,0.00014891,2]
[392759855,1761923432707,-151.0,0.00014891,2]
[392759858,1761923432717,-151.0,0.00014891,2]
[392759860,1761923432727,-151.0,0.00014891,2]
[392759861,1761923432737,-151.0,0.00014891,2]
[392759863,1761923432748,-151.0,0.00014891,2]
[392759865,1761923432758,-151.0,0.00014891,2]
[392759867,1761923432768,-151.0,0.00014891,2]
[392759869,1761923432778,-151.0,0.00014891,2]
[392759871,1761923432788,-151.0,0.00014891,2]
[392759873,1761923432798,-151.0,0.00014891,2]
[392759874,1761923432808,-151.0,0.00014891,2]
[392759875,1761923432817,-151.0,0.00014891,2]
[392759876,1761923432827,-574.12855637,0.00014891,2]
[392759877,1761923432837,-151.0,0.00014891,2]
[392759879,1761923432846,-151.0,0.00014891,2]
[392759881,1761923432856,-151.0,0.00014891,2]
[392759883,1761923432866,-151.0,0.00014891,2]
[392759885,1761923432875,-151.0,0.00014891,2]
[392759887,1761923432884,-164.63821375,0.00014899,2]
[392759889,1761923432894,-2111.4764,0.000149,2]
[392759891,1761923432904,-30943.7592,0.000149,2]
[392759893,1761923432914,-1594.0,0.000149,2]
[392759895,1761923432923,-1314.0,0.000149,2]
[392759897,1761923432933,-931.326,0.000149,2]
[392759899,1761923432943,-1271.0,0.000149,2]
[392759901,1761923432952,-776.44192093,0.000149,2]
[392759903,1761923432962,-5000.0,0.000149,2]
[392759905,1761923432976,-670.0376472,0.000149,2]
[392759907,1761923432986,-1000.0,0.000149,2]
[392759909,1761923432995,-168.41143416,0.000149,2]
[392759912,1761923433007,-1187.0,0.00014901,2]
[392759914,1761923433017,-706.433,0.00014901,2]
[392759916,1761923433026,-6630.0,0.00014901,2]
[392759918,1761923433037,-6468.0,0.00014901,2]
[392759920,1761923433049,-680.592,0.00014901,2]
[392759922,1761923433059,-434.17,0.00014907,2]
[392759924,1761923433068,-151.0,0.00014911,2]
[392759926,1761923433078,-151.0,0.00014912,2]
[392759928,1761923433087,-151.0,0.00014912,2]
[392759930,1761923433097,-500.0,0.00014973,2]
[392759932,1761923433106,-500.0,0.00014973,2]
[392759934,1761923433116,-167.9644913,0.00014973,2]
[392759936,1761923433125,-500.0,0.00014973,2]
[392759938,1761923433135,-500.0,0.00014973,2]
[392759940,1761923433144,-500.0,0.00014973,2]
[392759942,1761923433154,-161.76132953,0.00014973,2]
[392759944,1761923433163,-501.65059402,0.00014973,2]
[392759946,1761923433174,-405.82862696,0.00014973,2]
[392759948,1761923433184,-500.0,0.00014973,2]
[392759950,1761923433194,-500.0,0.00014973,2]
[392759951,1761923433204,-171.888,0.0001498,2]
[392759952,1761923433214,-503.46395869,0.00014985,2]
[392759953,1761923433223,-150.27602974,0.00014986,2]
[392759954,1761923433233,-150.0,0.00014986,2]
[392759955,1761923433242,-150.0,0.00014986,2]
[392759956,1761923433254,-150.0,0.00014986,2]
[392759957,1761923433263,-150.0,0.00014986,2]
[392759958,1761923433274,-150.0,0.00014986,2]
[392759959,1761923433284,-254.73793039,0.00014986,2]
[392759960,1761923433294,-5058.54,0.0001499,2]
[392759961,1761923433527,-2466.324,0.0001499,2]
[392759962,1761923433587,-43.41642614,0.0001499,2]
[392759963,1761923434098,-248.66610021,0.0001499,2]
[392759964,1761923434108,-292.08252635,0.0001499,2]
[392759965,1761923434118,-292.08252635,0.0001499,2]
[392759966,1761923434129,-150.0,0.00014991,2]
[392759967,1761923434139,-150.0,0.00014991,2]
[392759968,1761923434148,-150.0,0.00014991,2]
[392759969,1761923434157,-500.0,0.00014991,2]
[392759970,1761923434167,-150.0,0.00014991,2]
[392759971,1761923434177,-500.0,0.00014991,2]
[392759972,1761923434186,-150.0,0.00014991,2]
[392759973,1761923434196,-500.0,0.00014991,2]
[392759974,1761923434206,-603.0,0.00014991,2]
[392759975,1761923434215,-1081.0,0.00014991,2]
[392759976,1761923434225,-150.46513121,0.00014991,2]
[392759977,1761923434234,-500.0,0.00014991,2]
[392759978,1761923434244,-500.0,0.00014991,2]
[392759979,1761923434256,-150.0,0.00014991,2]
[392759980,1761923434265,-500.0,0.00014991,2]
[392759981,1761923434275,-150.0,0.00014991,2]
[392759982,1761923434285,-150.0,0.00014991,2]
[392759983,1761923434294,-150.0,0.00014991,2]
[392759984,1761923434303,-150.0,0.00014991,2]
[392759985,1761923434312,-150.0,0.00014991,2]
[392759986,1761923434321,-150.0,0.00014991,2]
[392759987,1761923434330,-150.0,0.00014991,2]
[392759988,1761923434340,-500.0,0.00014991,2]
[392759989,1761923434349,-500.0,0.00014991,2]
[392759990,1761923434358,-151.0,0.00014997,2]
[392759991,1761923434367,-57530.02752162,0.00014998,2]
[392759992,1761923434380,-51333.49707808,0.00014998,2]
[392759993,1761923434389,-306.29015272,0.00014999,2]
[392759994,1761923434399,-500.0,0.00014999,2]
[392759995,1761923434408,-500.0,0.00014999,2]
[392759996,1761923434418,-563.72792144,0.00014999,2]
[392759997,1761923434427,-666.8,0.00014999,2]
[392759998,1761923434436,-666.8,0.00014999,2]
[392759999,1761923434445,-666.8,0.00014999,2]
[392760000,1761923434456,-666.8,0.00014999,2]
[392760001,1761923434465,-666.8,0.00014999,2]
[392760002,1761923434476,-666.8,0.00014999,2]
[392760003,1761923434486,-666.8,0.00014999,2]
[392760004,1761923434496,-666.8,0.00014999,2]
[392760005,1761923434506,-666.8,0.00014999,2]
[392760006,1761923434515,-666.8,0.00014999,2]
[392760007,1761923434525,-666.8,0.00014999,2]
[392760008,1761923434534,-666.8,0.00014999,2]
[392760009,1761923434544,-666.8,0.00014999,2]
[392760010,1761923434554,-63.18249659,0.00014999,2]
[392760011,1761923434565,-603.61750341,0.00014999,2]
[392760012,1761923434574,-666.8,0.00014999,2]
[392760013,1761923434583,-666.8,0.00014999,2]
[392760014,1761923434593,-666.8,0.00014999,2]
[392760015,1761923434603,-666.8,0.00014999,2]
[392760016,1761923434612,-666.8,0.00014999,2]
[392760017,1761923434625,-666.8,0.00014999,2]
[392760018,1761923434635,-666.8,0.00014999,2]
[392760019,1761923434645,-666.8,0.00014999,2]
[392760020,1761923434655,-666.8,0.00014999,2]
[392760021,1761923434664,-666.96,0.00014999,2]
[392760022,1761923434673,-500.0,0.00014999,2]
[392760023,1761923434683,-319.37933512,0.00014999,2]
[392760024,1761923434692,-512.15447119,0.00014999,2]
[392760025,1761923434702,-500.0,0.00014999,2]
[392760026,1761923434711,-500.0,0.00014999,2]
[392760027,1761923434721,-500.0,0.00014999,2]
[392760028,1761923434730,-500.0,0.00014999,2]
[392760029,1761923434740,-500.0,0.00014999,2]
[392760030,1761923434750,-641.2,0.00014999,2]
[392760031,1761923434763,-500.0,0.00014999,2]